fUST/lending_fUST_20250830
["ID","MTS","AMOUNT","RATE_DAILY","PERIOD"]
[382244588,1756551565031,-500.0,0.00019072,2]
[382244589,1756551565066,-500.0,0.00019072,2]
[382244590,1756551565098,-500.0,0.00019072,2]
[382244591,1756551565127,-500.0,0.00019072,2]
[382244592,1756551565155,-500.0,0.00019072,2]
[382244593,1756551565183,-162.41238609,0.00019072,2]
[382244594,1756551565211,-500.0,0.00019072,2]
[382244595,1756551565238,-500.0,0.00019072,2]
[382244596,1756551565268,-398.99181462,0.00019072,2]
[382244597,1756551565476,-101.00818538,0.00019072,2]
[382244598,1756551565506,-358.28297768,0.00019072,2]
[382244599,1756551565536,-430.23500678,0.00019072,2]
[382244600,1756551565565,-500.0,0.00019072,2]
[382244601,1756551565595,-500.0,0.00019072,2]
[382244602,1756551565627,-500.0,0.00019072,2]
[382244603,1756551565656,-297.58792341,0.00019072,2]
[382244604,1756551565684,-500.0,0.00019072,2]
[382244605,1756551565712,-500.0,0.00019072,2]
[382244606,1756551565739,-462.33437622,0.00019072,2]
[382244607,1756551565767,-500.0,0.00019072,2]
[382244608,1756551565794,-79.9551218,0.00019072,2]
[382244609,1756551565944,-541.20281746,0.00019072,2]
[382244610,1756551565972,-500.0,0.00019072,2]
[382244611,1756551565999,-495.92238571,0.00019072,2]
[382244612,1756551566026,-488.2307451,0.00019072,2]
[382244613,1756551566057,-192.50148257,0.00019072,2]
[382244614,1756551566085,-241.91133501,0.00019072,2]
[382244615,1756551566114,-391.34007886,0.00019072,2]
[382244616,1756551566145,-500.0,0.00019072,2]
[382244617,1756551566176,-600.0,0.00019072,2]
[382244618,1756551566206,-500.0,0.00019072,2]
[382244619,1756551566237,-500.0,0.00019072,2]
[382244620,1756551568449,-388.41007764,0.00019072,2]
[382244621,1756551568466,-111.58992236,0.00019072,2]
[382244622,1756551568477,-488.41007764,0.00019072,2]
[382244623,1756551568497,-11.58992236,0.00019072,2]
[382244624,1756551568506,-488.41007764,0.00019072,2]
[382244625,1756551568525,-11.58992236,0.00019072,2]
[382244626,1756551568536,-488.41007764,0.00019072,2]
[382244627,1756551568551,-97.79231058,0.00019072,2]
[382244628,1756551711744,-1000.0,0.00018071,2]
[382244629,1756551711771,-151.0,0.00018668,2]
[382244630,1756551711797,-156.587,0.00018668,2]
[382244631,1756551711823,-199.23998575,0.00018668,2]
[382244632,1756551711849,-1986.3560285,0.00018882,2]
[382244633,1756551711929,-3013.6439715,0.00018882,2]
[382244634,1756551711960,-1303.55735733,0.00018973,2]
[382244635,1756551711989,-300.0,0.00018998,2]
[382244636,1756551712019,-1303.5573573,0.00018999,2]
[382244637,1756551712046,-1303.5573573,0.00019026,2]
[382244638,1756551712073,-275.10849884,0.00019052,2]
[382244639,1756551712208,-1028.44885846,0.00019052,2]
[382244640,1756551712242,-2347.87260389,0.00019061,2]
[382244641,1756551712272,-160.82,0.00019063,3]
[382244642,1756551712299,-482.46,0.00019063,3]
[382244643,1756551712326,-161.0,0.00019068,2]
[382244644,1756551712354,-162.81172432,0.00019068,2]
[382244645,1756551712524,-4986.64379121,0.00019072,2]
[382244646,1756551712673,-26.72241758,0.00019072,2]
[382244647,1756551720314,232.44562072,0.00018973,2]
[382244648,1756551723594,300.0,0.00019072,2]
[382244649,1756551730303,5000.0,0.00019073,2]
[382244650,1756551745703,1002.08444901,0.00019072,2]
[382244651,1756551753375,3412.03509511,0.00019073,2]
[382244652,1756551753398,1587.96490489,0.00019073,2]
[382244653,1756551766947,354.42,0.00019063,3]
[382244654,1756551776302,5000.0,0.00019073,2]
[382244655,1756551777707,177.21,0.00019063,3]
[382244656,1756551782666,300.0,0.00019072,2]
[382244658,1756551788330,265.5,0.00019063,3]
[382244659,1756551798970,221.2,0.00019063,3]
[382244660,1756551800117,2093.71509511,0.00019073,2]
[382244661,1756551800138,2906.28490489,0.00019073,2]
[382244662,1756551802601,748.67984728,0.00019072,2]
[382244663,1756551809596,663.65,0.00019063,3]
[382244664,1756551812806,5681.39524783,0.00018973,2]
[382244665,1756551812828,3218.24307441,0.00018973,2]
[382244666,1756551823742,5000.0,0.00019073,2]
[382244667,1756551832489,-1835.21176075,0.00019073,2]
[382244668,1756551833065,-10000.01,0.00019073,2]
[382244669,1756551833247,-10000.01,0.00019073,2]
[382244670,1756551833342,-10000.01,0.00019073,2]
[382244671,1756551833463,-10000.01,0.00019073,2]
[382244672,1756551833613,-10000.01,0.00019073,2]
[382244673,1756551833735,-10000.01,0.00019073,2]
[382244675,1756552048472,5000.0,0.0001801,2]
[382244676,1756552070868,5000.0,0.0001801,2]
[382244677,1756552083754,0.01,0.00015984,2]
[382244678,1756552083777,322.32,0.00015984,2]
[382244679,1756552084016,322.33,0.00015984,2]
[382244680,1756552094159,770.3804525,0.0001801,2]
[382244681,1756552143608,465.695644,0.00013699,2]
[382244708,1756552231763,-264.046848,0.00018025,2]
[382244710,1756552231774,-119.441152,0.00018059,2]
[382244712,1756552231786,-180.558848,0.00018059,2]
[382244714,1756552231795,-190.65305002,0.00018059,2]
[382244823,1756552237658,-109.34694998,0.00018059,2]
[382244824,1756552237667,-300.0,0.00018059,2]
[382244825,1756552237678,-300.0,0.00018059,2]
[382244826,1756552237687,-300.0,0.00018059,2]
[382244828,1756552237697,-1200.0,0.00018059,2]
[382244830,1756552237707,-10000.0,0.0001806,2]
[382244832,1756552237716,-743.575086,0.000181,2]
[382244833,1756552237726,-300.0,0.00018421,2]
[382244835,1756552237735,-300.0,0.00018421,2]
[382244837,1756552237745,-300.0,0.00018421,2]
[382244839,1756552237754,-300.0,0.00018421,2]
[382244841,1756552237762,-300.0,0.00018421,2]
[382244843,1756552237772,-300.0,0.00018421,2]
[382244846,1756552237781,-300.0,0.00018421,2]
[382244849,1756552237791,-300.0,0.00018421,2]
[382244852,1756552237800,-300.0,0.00018421,2]
[382244855,1756552237810,-300.0,0.00018421,2]
[382244858,1756552237819,-300.0,0.00018421,2]
[382244861,1756552237828,-300.0,0.00018421,2]
[382244864,1756552237837,-300.0,0.00018421,2]
[382244867,1756552237846,-300.0,0.00018421,2]
[382244870,1756552237855,-300.0,0.00018421,2]
[382244872,1756552237865,-15655.901436,0.00018421,2]
[382244874,1756552237880,-34344.098564,0.00018421,2]
[382244876,1756552237890,-600.0,0.00018788,20]
[382244879,1756552237899,-1200.0,0.00018879,2]
[382244880,1756552237909,-250.0,0.00018898,2]
[382244883,1756552237919,-152.00856054,0.00018963,2]
[382244885,1756552237928,-427.89,0.00018963,3]
[382244886,1756552237937,-213.94,0.00018963,3]
[382244889,1756552237948,-641.87,0.00018963,3]
[382244890,1756552237957,-370000.0,0.00018973,2]
[382244892,1756552237967,-1560.93439985,0.00018973,2]
[382244895,1756552237977,-6105.83895116,0.00018973,2]
[382244897,1756552237987,-1560.93439984,0.00018999,2]
[382244899,1756552237996,-328.0,0.00019018,2]
[382244901,1756552238006,-168.03,0.00019018,2]
[382244903,1756552238016,-168.03,0.00019018,2]
[382244905,1756552238026,-168.03,0.00019018,2]
[382244907,1756552238036,-168.03,0.00019018,2]
[382244909,1756552238046,-168.03,0.00019018,2]
[382244911,1756552238055,-168.03,0.00019018,2]
[382244913,1756552238065,-168.04,0.00019018,2]
[382244915,1756552238074,-1560.93439984,0.00019026,2]
[382244916,1756552238084,-1560.93439984,0.00019052,2]
[382244919,1756552238094,-2347.87260389,0.00019061,2]
[382244921,1756552238104,-328.0,0.00019069,2]
[382244923,1756552238115,-500.0,0.00019072,2]
[382244925,1756552238126,-500.0,0.00019072,2]
[382244927,1756552238138,-500.0,0.00019072,2]
[382244929,1756552238147,-500.0,0.00019072,2]
[382244931,1756552238156,-500.0,0.00019072,2]
[382244932,1756552238166,-500.0,0.00019072,2]
[382244935,1756552238175,-211.27142243,0.00019072,2]
[382244937,1756552238186,-500.0,0.00019072,2]
[382244938,1756552238195,-500.0,0.00019072,2]
[382244941,1756552238205,-331.4067295,0.00019072,2]
[382244943,1756552238215,-500.0,0.00019072,2]
[382244945,1756552238225,-500.0,0.00019072,2]
[382244947,1756552238234,-500.0,0.00019072,2]
[382244949,1756552238244,-464.97862713,0.00019072,2]
[382244951,1756552238254,-500.0,0.00019072,2]
[382244953,1756552238263,-515.29518264,0.00019072,2]
[382244955,1756552238272,-500.0,0.00019072,2]
[382244957,1756552238282,-500.0,0.00019072,2]
[382244959,1756552238291,-500.0,0.00019072,2]
[382244961,1756552238301,-500.0,0.00019072,2]
[382244963,1756552238310,-500.0,0.00019072,2]
[382244965,1756552238320,-500.0,0.00019072,2]
[382244967,1756552238329,-500.0,0.00019072,2]
[382244969,1756552238339,-500.0,0.00019072,2]
[382244971,1756552238348,-172.88153612,0.00019072,2]
[382244973,1756552238357,-500.0,0.00019072,2]
[382244975,1756552238369,-500.0,0.00019072,2]
[382244977,1756552238380,-500.0,0.00019072,2]
[382244978,1756552238391,-447.06480429,0.00019072,2]
[382244980,1756552238401,-500.0,0.00019072,2]
[382245002,1756552238603,-500.0,0.00019072,2]
[382245004,1756552238617,-500.0,0.00019072,2]
[382245007,1756552238627,-500.0,0.00019072,2]
[382245009,1756552238637,-500.0,0.00019072,2]
[382245011,1756552238646,-500.0,0.00019072,2]
[382245013,1756552238656,-500.0,0.00019072,2]
[382245015,1756552238666,-454.30993737,0.00019072,2]
[382245017,1756552238675,-500.0,0.00019072,2]
[382245019,1756552238685,-560.78426836,0.00019072,2]
[382245020,1756552238695,-500.0,0.00019072,2]
[382245022,1756552238704,-500.0,0.00019072,2]
[382245024,1756552238713,-500.0,0.00019072,2]
[382245026,1756552238722,-500.0,0.00019072,2]
[382245028,1756552238732,-500.0,0.00019072,2]
[382245030,1756552238742,-500.0,0.00019072,2]
[382245032,1756552238751,-500.0,0.00019072,2]
[382245034,1756552238760,-500.0,0.00019072,2]
[382245036,1756552238769,-500.0,0.00019072,2]
[382245038,1756552238779,-500.0,0.00019072,2]
[382245040,1756552238788,-500.0,0.00019072,2]
[382245042,1756552238798,-500.0,0.00019072,2]
[382245044,1756552238807,-500.0,0.00019072,2]
[382245046,1756552238816,-500.0,0.00019072,2]
[382245048,1756552238825,-500.0,0.00019072,2]
[382245050,1756552238835,-500.0,0.00019072,2]
[382245052,1756552238844,-530.3268815,0.00019072,2]
[382245054,1756552238854,-500.0,0.00019072,2]
[382245056,1756552238863,-500.0,0.00019072,2]
[382245058,1756552238873,-500.0,0.00019072,2]
[382245060,1756552238882,-500.0,0.00019072,2]
[382245062,1756552238891,-500.0,0.00019072,2]
[382245064,1756552238901,-500.0,0.00019072,2]
[382245066,1756552238914,-500.0,0.00019072,2]
[382245068,1756552238923,-500.0,0.00019072,2]
[382245071,1756552238934,-500.0,0.00019072,2]
[382245073,1756552238944,-500.0,0.00019072,2]
[382245075,1756552238953,-500.0,0.00019072,2]
[382245077,1756552238963,-500.00000001,0.00019072,2]
[382245079,1756552238973,-500.00000001,0.00019072,2]
[382245081,1756552238982,-417.19011873,0.00019072,2]
[382245083,1756552238991,-436.9488434,0.00019072,2]
[382245085,1756552239000,-214.69270561,0.00019072,2]
[382245087,1756552239010,-500.0,0.00019072,2]
[382245089,1756552239019,-327.0,0.00019073,2]
[382245091,1756552239029,-327.0,0.00019073,2]
[382245093,1756552239038,-327.0,0.00019073,2]
[382245095,1756552239048,-327.0,0.00019073,2]
[382245097,1756552239057,-238.5749063,0.00019073,2]
[382245099,1756552239067,-327.0,0.00019073,2]
[382245101,1756552239076,-327.0,0.00019073,2]
[382245103,1756552239087,-1766.0,0.00019073,2]
[382245105,1756552239097,-1766.0,0.00019073,2]
[382245107,1756552239106,-1766.0,0.00019073,2]
[382245109,1756552239117,-1766.0,0.00019073,2]
[382245111,1756552239127,-1766.0,0.00019073,2]
[382245113,1756552239136,-1766.0,0.00019073,2]
[382245115,1756552239145,-1766.0,0.00019073,2]
[382245117,1756552239155,-1795.99096568,0.00019073,2]
[382245119,1756552239165,-500.0,0.00019073,2]
[382245121,1756552239175,-500.0,0.00019073,2]
[382245123,1756552239184,-500.0,0.00019073,2]
[382245125,1756552239194,-500.0,0.00019073,2]
[382245127,1756552239204,-500.0,0.00019073,2]
[382245129,1756552239214,-500.0,0.00019073,2]
[382245131,1756552239223,-500.0,0.00019073,2]
[382245133,1756552239233,-400.92377988,0.00019073,2]
[382245135,1756552239244,-377.58739239,0.00019073,2]
[382245137,1756552239254,-500.0,0.00019073,2]
[382245139,1756552239263,-500.0,0.00019073,2]
[382245141,1756552239272,-500.0,0.00019073,2]
[382245143,1756552239282,-501.03306989,0.00019073,2]
[382245145,1756552239291,-500.0,0.00019073,2]
[382245147,1756552239300,-500.0,0.00019073,2]
[382245149,1756552239310,-500.0,0.00019073,2]
[382245151,1756552239319,-160.35872253,0.00019073,2]
[382245153,1756552239329,-6513.36948547,0.00019073,2]
[382245155,1756552239338,-1560.93439984,0.00019078,2]
[382245157,1756552239348,-1000.0,0.00019078,2]
[382245159,1756552239357,-858.1403364,0.0001908,2]
[382245162,1756552239367,-151.0,0.000191,2]
[382245164,1756552239376,-151.0,0.000191,2]
[382245166,1756552239385,-151.0,0.000191,2]
[382245168,1756552239394,-151.0,0.000191,2]
[382245170,1756552239405,-151.0,0.000191,2]
[382245173,1756552239417,-151.0,0.000191,2]
[382245175,1756552239427,-151.0,0.000191,2]
[382245177,1756552239440,-151.0,0.000191,2]
[382245179,1756552239450,-151.0,0.000191,2]
[382245180,1756552239459,-150.0,0.00019111,2]
[382245182,1756552239469,-2434.74389024,0.00019116,2]
[382245184,1756552239480,-1000.0,0.00019166,2]
[382245186,1756552239490,-1000.0,0.00019166,2]
[382245189,1756552239500,-1000.0,0.00019166,2]
[382245191,1756552239510,-151.0,0.00019166,2]
[382245192,1756552239520,-1000.0,0.00019166,2]
[382245195,1756552239530,-1000.0,0.00019166,2]
[382245196,1756552239540,-151.0,0.00019166,2]
[382245198,1756552239550,-1000.0,0.00019166,2]
[382245200,1756552239559,-151.0,0.00019166,2]
[382245202,1756552239568,-151.0,0.00019166,2]
[382245204,1756552239577,-1000.0,0.00019166,2]
[382245206,1756552239586,-151.0,0.00019166,2]
[382245208,1756552239596,-1000.0,0.00019166,2]
[382245210,1756552239606,-151.0,0.00019166,2]
[382245212,1756552239616,-1000.0,0.00019166,2]
[382245214,1756552239625,-151.0,0.00019166,2]
[382245216,1756552239635,-151.0,0.00019166,2]
[382245218,1756552239644,-1000.0,0.00019166,2]
[382245220,1756552239653,-151.0,0.00019166,2]
[382245222,1756552239662,-1000.0,0.00019166,2]
[382245224,1756552239671,-151.0,0.00019166,2]
[382245226,1756552239681,-151.0,0.00019166,2]
[382245228,1756552239691,-1000.0,0.00019166,2]
[382245230,1756552239700,-151.0,0.00019166,2]
[382245232,1756552239709,-1000.0,0.00019166,2]
[382245234,1756552239719,-151.0,0.00019166,2]
[382245236,1756552239728,-1000.0,0.00019166,2]
[382245238,1756552239738,-151.0,0.00019166,2]
[382245240,1756552239748,-1000.0,0.00019166,2]
[382245242,1756552239758,-1000.0,0.00019166,2]
[382245244,1756552239767,-1000.0,0.00019166,2]
[382245246,1756552239777,-1000.0,0.00019166,2]
[382245248,1756552239787,-1000.0,0.00019166,2]
[382245250,1756552239797,-1000.0,0.00019166,2]
[382245252,1756552239807,-500.0,0.00019166,2]
[382245254,1756552239817,-390.61850996,0.00019166,2]
[382245256,1756552239826,-151.0,0.00019166,2]
[382245258,1756552239835,-500.0,0.00019166,2]
[382245260,1756552239846,-187.78006525,0.00019166,2]
[382245262,1756552239855,-500.0,0.00019166,2]
[382245264,1756552239868,-500.0,0.00019166,2]
[382245267,1756552239877,-500.0,0.00019166,2]
[382245269,1756552239886,-500.0,0.00019166,2]
[382245271,1756552239895,-500.0,0.00019166,2]
[382245273,1756552239905,-500.0,0.00019166,2]
[382245275,1756552239915,-500.0,0.00019166,2]
[382245277,1756552239924,-151.0,0.00019166,2]
[382245279,1756552239933,-151.0,0.00019166,2]
[382245281,1756552239943,-500.0,0.00019166,2]
[382245283,1756552239952,-151.0,0.00019166,2]
[382245285,1756552239962,-151.0,0.00019166,2]
[382245287,1756552239972,-500.0,0.00019166,2]
[382245289,1756552239981,-151.0,0.00019166,2]
[382245291,1756552239991,-151.0,0.00019166,2]
[382245293,1756552240001,-500.0,0.00019166,2]
[382245295,1756552240014,-151.0,0.00019166,2]
[382245297,1756552240023,-151.0,0.00019166,2]
[382245299,1756552240033,-500.0,0.00019166,2]
[382245301,1756552240043,-151.0,0.00019166,2]
[382245303,1756552240053,-151.0,0.00019166,2]
[382245305,1756552240063,-500.0,0.00019166,2]
[382245307,1756552240072,-151.0,0.00019166,2]
[382245309,1756552240081,-151.0,0.00019166,2]
[382245311,1756552240090,-500.0,0.00019166,2]
[382245313,1756552240099,-151.0,0.00019166,2]
[382245315,1756552240109,-151.0,0.00019166,2]
[382245317,1756552240120,-151.0,0.00019166,2]
[382245319,1756552240129,-151.0,0.00019166,2]
[382245321,1756552240138,-151.0,0.00019166,2]
[382245323,1756552240147,-151.0,0.00019166,2]
[382245325,1756552240156,-151.0,0.00019166,2]
[382245327,1756552240166,-151.0,0.00019166,2]
[382245329,1756552240175,-151.0,0.00019166,2]
[382245331,1756552240184,-151.0,0.00019166,2]
[382245333,1756552240193,-151.0,0.00019166,2]
[382245335,1756552240202,-151.0,0.00019166,2]
[382245337,1756552240212,-151.0,0.00019166,2]
[382245339,1756552240221,-151.0,0.00019166,2]
[382245340,1756552240231,-151.0,0.00019166,2]
[382245342,1756552240240,-151.0,0.00019166,2]
[382245344,1756552240249,-151.0,0.00019166,2]
[382245346,1756552240259,-151.0,0.00019166,2]
[382245348,1756552240269,-152.372997,0.00019167,2]
[382245350,1756552240278,-151.0,0.00019167,2]
[382245352,1756552240287,-608.0,0.00019168,2]
[382245354,1756552240297,-2524.82941417,0.00019171,2]
[382245356,1756552240306,-500.0,0.00019172,2]
[382245358,1756552240316,-641.95122164,0.00019172,2]
[382245360,1756552240325,-500.0,0.00019173,2]
[382245362,1756552240335,-500.0,0.00019173,2]
[382245364,1756552240345,-503.49188144,0.00019173,2]
[382245366,1756552240355,-501.3350901,0.00019173,2]
[382245368,1756552240367,-500.0,0.00019173,2]
[382245371,1756552240377,-500.0,0.00019173,2]
[382245372,1756552240386,-500.51078279,0.00019173,2]
[382245374,1756552240396,-212.75742335,0.00019173,2]
[382245377,1756552240407,-500.0,0.00019173,2]
[382245378,1756552240416,-500.9049458,0.00019173,2]
[382245380,1756552240426,-500.0,0.00019173,2]
[382245382,1756552240439,-500.0,0.00019173,2]
[382245384,1756552240449,-554.46295892,0.00019173,2]
[382245386,1756552240458,-500.0,0.00019173,2]
[382245388,1756552240467,-500.0,0.00019173,2]
[382245390,1756552240477,-500.0,0.00019173,2]
[382245392,1756552240486,-500.0,0.00019173,2]
[382245394,1756552240495,-524.38061658,0.00019173,2]
[382245396,1756552240506,-500.0,0.00019173,2]
[382245398,1756552240516,-500.0,0.00019173,2]
[382245400,1756552240526,-500.0,0.00019173,2]
[382245402,1756552240535,-500.0,0.00019173,2]
[382245404,1756552240544,-500.0,0.00019173,2]
[382245407,1756552240553,-500.0,0.00019173,2]
[382245409,1756552240563,-500.0,0.00019173,2]
[382245411,1756552240573,-461.7545245,0.00019173,2]
[382245413,1756552240583,-502.16696844,0.00019173,2]
[382245414,1756552240592,-608.64124363,0.00019173,2]
[382245416,1756552240604,-500.0,0.00019173,2]
[382245418,1756552240615,-500.0,0.00019173,2]
[382245420,1756552240624,-500.0,0.00019173,2]
[382245422,1756552240634,-501.74279141,0.00019173,2]
[382245424,1756552240644,-500.0,0.00019173,2]
[382245426,1756552240654,-500.0,0.00019173,2]
[382245428,1756552240663,-500.0,0.00019173,2]
[382245430,1756552240674,-500.0,0.00019173,2]
[382245433,1756552240684,-289.75713532,0.00019173,2]
[382245435,1756552240693,-500.0,0.00019173,2]
[382245437,1756552240703,-500.0,0.00019173,2]
[382245438,1756552240712,-367.51569067,0.00019173,2]
[382245439,1756552240721,-500.0,0.00019173,2]
[382245440,1756552240731,-500.0,0.00019173,2]
[382245441,1756552240740,-500.0,0.00019173,2]
[382245442,1756552240749,-500.0,0.00019173,2]
[382245443,1756552240759,-500.0,0.00019173,2]
[382245444,1756552240771,-501.60924757,0.00019173,2]
[382245445,1756552240780,-500.0,0.00019173,2]
[382245446,1756552240789,-500.0,0.00019173,2]
[382245447,1756552240798,-170.021231,0.00019173,2]
[382245448,1756552240808,-170.021231,0.00019173,2]
[382245449,1756552240817,-170.021231,0.00019173,2]
[382245450,1756552240826,-170.021231,0.00019173,2]
[382245451,1756552240835,-2002.31,0.00019177,2]
[382245452,1756552240845,-2002.31,0.00019177,2]
[382245453,1756552240854,-2002.31,0.00019177,2]
[382245454,1756552240863,-2002.31,0.00019177,2]
[382245455,1756552240873,-2002.31,0.00019177,2]
[382245456,1756552240882,-2002.31,0.00019177,2]
[382245457,1756552240897,-2002.31,0.00019177,2]
[382245458,1756552240907,-2002.31,0.00019177,2]
[382245459,1756552240916,-1611.93902555,0.00019178,2]
[382245460,1756552240927,-480.0,0.00019178,2]
[382245461,1756552240937,-435.60249108,0.00019178,2]
[382245462,1756552240947,-480.0,0.00019178,2]
[382245463,1756552240957,-480.0,0.00019178,2]
[382245464,1756552240966,-480.0,0.00019178,2]
[382245465,1756552240975,-481.86787732,0.00019178,2]
[382245466,1756552240985,-480.65597444,0.00019178,2]
[382245467,1756552240994,-480.0,0.00019178,2]
[382245468,1756552241004,-480.0,0.00019178,2]
[382245469,1756552241013,-480.0,0.00019178,2]
[382245470,1756552241023,-484.74506649,0.00019178,2]
[382245471,1756552241033,-485.89790385,0.00019178,2]
[382245472,1756552241043,-480.0,0.00019178,2]
[382245473,1756552241052,-486.31799197,0.00019178,2]
[382245474,1756552241063,-480.0,0.00019178,2]
[382245475,1756552241072,-480.0,0.00019178,2]
[382245476,1756552241082,-480.0,0.00019178,2]
[382245477,1756552241093,-480.0,0.00019178,2]
[382245479,1756552241102,-480.0,0.00019178,2]
[382245480,1756552241112,-480.0,0.00019178,2]
[382245481,1756552241121,-480.0,0.00019178,2]
[382245483,1756552241131,-480.0,0.00019178,2]
[382245485,1756552241140,-480.0,0.00019178,2]
[382245486,1756552241149,-480.0,0.00019178,2]
[382245488,1756552241159,-480.0,0.00019178,2]
[382245490,1756552241168,-480.0,0.00019178,2]
[382245492,1756552241178,-500.0,0.00019178,2]
[382245494,1756552241187,-500.0,0.00019178,2]
[382245496,1756552241198,-323.73741603,0.00019178,2]
[382245499,1756552241208,-480.0,0.00019178,2]
[382245501,1756552241218,-480.0,0.00019178,2]
[382245503,1756552241227,-609.63,0.00019178,2]
[382245505,1756552241237,-480.0,0.00019178,2]
[382245507,1756552241247,-480.0,0.00019178,2]
[382245509,1756552241256,-483.5665704,0.00019178,2]
[382245511,1756552241267,-480.0,0.00019178,2]
[382245513,1756552241279,-545.11,0.00019178,2]
[382245514,1756552241289,-480.0,0.00019178,2]
[382245517,1756552241298,-480.0,0.00019178,2]
[382245519,1756552241308,-480.0,0.00019178,2]
[382245520,1756552241318,-480.0,0.00019178,2]
[382245522,1756552241327,-516.14,0.00019178,2]
[382245524,1756552241336,-480.0,0.00019178,2]
[382245526,1756552241345,-480.0,0.00019178,2]
[382245529,1756552241355,-480.0,0.00019178,2]
[382245531,1756552241367,-480.0,0.00019178,2]
[382245533,1756552241376,-480.0,0.00019178,2]
[382245535,1756552241386,-480.0,0.00019178,2]
[382245536,1756552241396,-480.0,0.00019178,2]
[382245539,1756552241406,-1000.0,0.00019178,2]
[382245541,1756552241416,-480.0,0.00019178,2]
[382245542,1756552241427,-480.0,0.00019178,2]
[382245544,1756552241442,-480.0,0.00019178,2]
[382245546,1756552241452,-718.15,0.00019178,2]
[382245548,1756552241462,-480.0,0.00019178,2]
[382245550,1756552241471,-480.0,0.00019178,2]
[382245552,1756552241481,-480.0,0.00019178,2]
[382245554,1756552241491,-480.0,0.00019178,2]
[382245556,1756552241501,-480.0,0.00019178,2]
[382245558,1756552241511,-480.0,0.00019178,2]
[382245560,1756552241521,-480.0,0.00019178,2]
[382245562,1756552241531,-480.0,0.00019178,2]
[382245564,1756552241541,-500.0,0.00019178,2]
[382245566,1756552241550,-480.0,0.00019178,2]
[382245568,1756552241559,-480.0,0.00019178,2]
[382245569,1756552241569,-480.0,0.00019178,2]
[382245571,1756552241579,-903.93,0.00019178,2]
[382245573,1756552241588,-480.0,0.00019178,2]
[382245575,1756552241598,-480.0,0.00019178,2]
[382245577,1756552241608,-483.53022449,0.00019178,2]
[382245579,1756552241618,-480.0,0.00019178,2]
[382245581,1756552241627,-480.0,0.00019178,2]
[382245583,1756552241637,-480.0,0.00019178,2]
[382245585,1756552241646,-480.0,0.00019178,2]
[382245587,1756552241655,-876.75,0.00019178,2]
[382245589,1756552241664,-480.0,0.00019178,2]
[382245591,1756552241674,-480.0,0.00019178,2]
[382245593,1756552241683,-943.68,0.00019178,2]
[382245595,1756552241693,-151.0,0.00019178,2]
[382245597,1756552241703,-151.0,0.00019178,2]
[382245599,1756552241712,-480.0,0.00019178,2]
[382245601,1756552241722,-152.212318,0.00019178,2]
[382245602,1756552241731,-480.0,0.00019178,2]
[382245604,1756552241740,-546.2364117,0.00019178,2]
[382245606,1756552241750,-480.0,0.00019178,2]
[382245608,1756552241759,-480.0,0.00019178,2]
[382245610,1756552241770,-480.0,0.00019178,2]
[382245612,1756552241780,-480.0,0.00019178,2]